[Event "Marshall CC U2400 January 2024"]
[Site "New York"]
[Date "2024.01.22"]
[Round "5.4"]
[White "Paragua, Megan Althea"]
[Black "Ulloa Centeno, Leandro Nicolas"]
[Result "1/2-1/2"]
[ECO "A48"]
[WhiteElo "2006"]
[BlackElo "1647"]
[Annotator "RC"]
[PlyCount "165"]
[EventDate "2024.01.19"]
[EventType "swiss"]
[EventCountry "USA"]
[SourceTitle "playchess.com"]
[Source "ChessBase"]
[SourceQuality "1"]
[TimeControl "5400+30"]

1. d4 {[%emt 0:04:33]} Nf6 {[%emt 0:00:10]} 2. Nf3 {[%emt 0:00:03]} g6 {[%emt 0:00:15]} 3. e3 {[%emt 0:00:04]} Bg7 {[%emt 0:00:25]} 4. Be2 {[%emt 0:00:31]} O-O {[%emt 0:00:27]} 5. O-O {[%emt 0:00:11]} d6 {[%emt 0:00:41]} 6. b3 {[%emt 0:00:07]} c5 {[%emt 0:02:09]} 7. Bb2 {[%emt 0:00:47]} Nc6 {[%emt 0:02:15]} 8. Nbd2 {[%emt 0:00:30]} b6 {[%emt 0:06:11]} 9. c4 {[%emt 0:02:34]} a5 {[%emt 0:01:06]} 10. d5 {[%emt 0:01:09]} Nb8 {[%emt 0:00:30]} 11. e4 {[%emt 0:00:46]} Na6 {[%emt 0:03:22]} 12. Re1 {[%emt 0:03:16]} Nc7 {[%emt 0:02:44]} 13. Qc2 {[%emt 0:03:17]} e5 {[%emt 0:02:03]} 14. dxe6 {[%emt 0:00:50]} Nxe6 {[%emt 0:00:10]} 15. Bf1 {[%emt 0:06:33]} Nd7 {[%emt 0:02:05]} 16. Bxg7 {[%emt 0:01:33]} Kxg7 {[%emt 0:00:14]} 17. g3 {[%emt 0:03:39]} Ne5 {[%emt 0:03:51]} 18. Bg2 {[%emt 0:07:15]} Bb7 {[%emt 0:02:22]} 19. Rad1 {[%emt 0:06:51]} Nc6 {[%emt 0:05:42]} 20. Qc3+ {[%emt 0:01:48]} f6 {[%emt 0:06:13]} 21. Nf1 {[%emt 0:03:34]} Ned4 {[%emt 0:01:42]} 22. Nxd4 {[%emt 0:02:42]} Nxd4 {[%emt 0:00:03]} 23. Nd2 {[%emt 0:02:06]} Qc7 {[%emt 0:05:38]} 24. Nf3 {[%emt 0:00:52]} Nc6 {[%emt 0:03:52]} 25. Rd2 {[%emt 0:01:20]} Bc8 {[%emt 0:02:34]} 26. Red1 {[%emt 0:01:00]} Bg4 {[%emt 0:04:57]} 27. Rd3 {[%emt 0:46:09]} d5 28. Rxd5 {[%emt 0:00:00]} Rad8 {[%emt 0:00:46]} 29. Rxd8 {[%emt 0:00:00]} Rxd8 {[%emt 0:00:14]} 30. Rd5 {[%emt 0:00:00]} Bxf3 {[%emt 0:01:17]} 31. Bxf3 {[%emt 0:00:00]} Nb4 {[%emt 0:03:06]} 32. Rd2 {[%emt 0:00:00]} Nc6 {[%emt 0:03:41]} 33. Bg2 {[%emt 0:00:00]} Qe5 {[%emt 0:04:18]} 34. Qxe5 {[%emt 0:00:00]} fxe5 {[%emt 0:00:02]} 35. Rd5 {[%emt 0:00:00]} Rxd5 {[%emt 0:05:09]} 36. cxd5 {[%emt 0:00:00]} Nb4 {[%emt 0:00:35]} 37. a4 {[%emt 0:00:00]} c4 {[%emt 0:04:54]} 38. bxc4 {[%emt 0:00:00]} Nd3 {[%emt 0:00:11]} 39. f4 {[%emt 0:00:00]} Kf6 {[%emt 0:00:56]} 40. Bh3 {[%emt 0:00:00]} exf4 {[%emt 0:01:12]} 41. Bf1 {[%emt 0:00:00]} Nc5 {[%emt 0:00:29]} 42. gxf4 {[%emt 0:00:00]} Nxe4 {[%emt 0:00:11]} 43. Bd3 {[%emt 0:00:00]} Nc3 {[%emt 0:01:12]} 44. Bc2 {[%emt 0:00:00]} Ne2+ {[%emt 0:00:06]} 45. Kf2 {[%emt 0:00:00]} Nxf4 {[%emt 0:00:03]} 46. Kf3 {[%emt 0:00:00]} Ke5 {[%emt 0:00:25]} 47. h4 {[%emt 0:00:00]} Nh5 {[%emt 0:04:15]} 48. Kg4 {[%emt 0:00:00]} Kf6 {[%emt 0:02:07]} 49. Bb1 {[%emt 0:02:07]} Ng7 {[%emt 0:00:43]} 50. Kf4 {[%emt 0:00:11]} Ne8 {[%emt 0:02:44]} 51. Ke4 {[%emt 0:00:33]} Nd6+ {[%emt 0:01:35]} 52. Kd4 {[%emt 0:00:05]} Nb7 {[%emt 0:00:31]} 53. Bc2 {[%emt 0:01:46]} Nc5 {[%emt 0:00:54]} 54. Bd1 {[%emt 0:00:46]} h6 {[%emt 0:02:38]} 55. Bc2 {[%emt 0:01:31]} g5 {[%emt 0:00:12]} 56. hxg5+ {[%emt 0:00:08]} hxg5 {[%emt 0:00:09]} 57. Bd1 {[%emt 0:01:00]} Kf5 {[%emt 0:00:06]} 58. Bc2+ {[%emt 0:01:29]} Kf4 {[%emt 0:00:30]} 59. Bd1 {[%emt 0:02:49]} Kf5 {[%emt 0:06:58]} 60. Bc2+ {[%emt 0:00:12]} Kf6 {[%emt 0:00:16]} 61. Bd1 {[%emt 0:00:13]} Nb7 {[%emt 0:01:35]} 62. Bg4 {[%emt 0:00:14]} Nc5 {[%emt 0:03:18]} 63. Bd1 {[%emt 0:00:01]} Ke7 {[%emt 0:01:21]} 64. Ke5 {[%emt 0:01:17]} Nd3+ {[%emt 0:00:07]} 65. Kf5 {[%emt 0:00:26]} g4 {[%emt 0:00:44]} 66. Bxg4 {[%emt 0:01:16]} Nb2 {[%emt 0:00:03]} 67. Ke5 {[%emt 0:00:07]} Nxc4+ {[%emt 0:00:05]} 68. Kd4 {[%emt 0:00:19]} Nb2 {[%emt 0:00:26]} 69. Be2 {[%emt 0:00:32]} Nxa4 {[%emt 0:00:14]} 70. Kc4 {[%emt 0:01:23]} Nc5 {[%emt 0:00:48]} 71. Kb5 {[%emt 0:00:18]} Nd7 {[%emt 0:00:14]} 72. Kc6 {[%emt 0:00:21]} a4 {[%emt 0:01:52]} 73. Kb5 {[%emt 0:01:49]} a3 {[%emt 0:00:51]} 74. Bc4 {[%emt 0:00:12]} Kd6 {[%emt 0:00:47]} 75. Kb4 {[%emt 0:00:08]} Nf6 {[%emt 0:00:26]} 76. Kxa3 {[%emt 0:00:06]} Kc5 {[%emt 0:00:06]} 77. Bb3 {[%emt 0:00:34]} Ne4 {[%emt 0:00:35]} 78. Ka4 {[%emt 0:01:13]} b5+ {[%emt 0:00:32]} 79. Ka5 {[%emt 0:01:13]} Nd2 {[%emt 0:00:48]} 80. Bd1 {[%emt 0:01:00]} Nc4+ {[%emt 0:00:36]} 81. Ka6 {[%emt 0:00:05]} b4 {[%emt 0:00:06]} 82. Bb3 {[%emt 0:00:44]} Nd2 {[%emt 0:00:39]} 83. d6 {[%emt 0:00:49]} 1/2-1/2